Cogmind - Beta 13 X2 @@@ ROGUE MODE // 2024.01.07 @ 12:10:58 Player: cptwinky Result: Destroyed by 8R-AWN with 8R-AWN's Boregun Performance ------------- Evolutions (0) 0 Regions Visited (3) 600 Robots Destroyed (21) 105 Value Destroyed (467) 467 Prototype IDs (39) 780 Alien Tech Used (0) 0 Bonus (300) 300 TOTAL SCORE: 2252 Bonus ------- Aligned with FarCom 300 Cogmind --------- Core Integrity 0/250 Matter 254/450 Energy 105/125 System Corruption 1% Temperature Cool (0) Movement Treading (480) Ox4 Location -10/Exiles Parts ------- > --- POWER (1) -------- Light Ion Engine > --- PROPULSION (2) --- Light Treads > --- UTILITY (2) ------ Huge Storage Unit Large Matter Pod > --- WEAPON (2) ------- Guided Plasma Cannon Longsword +1 > --- INVENTORY (25) --- Light Treads Light Treads Light Treads Wheel Compact Wheel Large Matter Pod (150) High-capacity Matter Pod (200) Hacking Suite Assault Rifle Assault Rifle Assault Rifle Mini Grenade Launcher Mini Grenade Launcher Mini Grenade Launcher Mini Grenade Launcher Datajack Plasma Cutter Hammer Peak State ------------ > --- POWER ------------ Ion Engine > --- PROPULSION ------- Light Treads Light Treads > --- UTILITY ---------- Huge Storage Unit Targeting Computer > --- WEAPON ----------- Makeshift Axe Longsword +1 > --- INVENTORY -------- Light Ion Engine Light Treads Light Treads Light Treads Light Treads Wheel Compact Wheel Large Matter Pod Large Matter Pod High-capacity Matter Pod Hacking Suite Guided Plasma Cannon Assault Rifle Assault Rifle Assault Rifle Mini Grenade Launcher Mini Grenade Launcher Mini Grenade Launcher Mini Grenade Launcher Datajack Plasma Cutter Hammer [Rating: 20] Favorites ----------- Power Ion Engine Engine Ion Engine Propulsion Light Treads Treads Light Treads Leg Aluminum Leg Wheel Compact Wheel Utility Targeting Computer Storage Huge Storage Unit Processor Targeting Computer Protection Weapon Shielding Weapon Assault Rifle Ballistic Gun Assault Rifle Launcher Mini Grenade Launcher Special Weapon Plasma Cutter Impact Weapon Hammer Slashing Weapon Longsword +1 Special Melee Weapon Datajack Build | -11 -10 -10 -10 ------- Run | Yrd Mat Min Exi Slots Evolved . | . . . . Power . | . . . . Propulsion . | . . . . Utility . | . . . . Weapon . | . . . . Parts Attached 34 | 2 11 5 16 Power 2 | . 1 . 1 Engine 2 | . 1 . 1 Core . | . . . . Reactor . | . . . . Propulsion 9 | 2 1 . 6 Treads 6 | 2 . . 4 Leg . | . . . . Wheel 3 | . 1 . 2 Hover . | . . . . Flight . | . . . . Utility 6 | . 5 . 1 Device . | . . . . Storage 4 | . 3 . 1 Processor 1 | . 1 . . Hackware . | . . . . Protection 1 | . 1 . . Artifact . | . . . . Weapon 17 | . 4 5 8 Energy Gun . | . . . . Energy Cannon 1 | . . . 1 Ballistic Gun 7 | . 3 2 2 Ballistic Cannon . | . . . . Launcher 2 | . . 1 1 Special Weapon 1 | . . . 1 Impact Weapon 1 | . . 1 . Slashing Weapon 2 | . . . 2 Piercing Weapon . | . . . . Special Melee Weapon 3 | . 1 1 1 Unidentified Prototypes . | . . . . Parts Lost 5 | . 1 . 4 Power 1 | . . . 1 Propulsion 2 | . . . 2 Utility 1 | . 1 . . Weapon 1 | . . . 1 Highest Loss Streak 4 | . 1 . 4 To Critical Strikes 3 | . . . 3 Average Slot Usage (%) 99 | . 98 100 99 Engine 13 | . 14 14 13 Treads 18 | . 23 14 14 Wheel 9 | . 4 14 13 Storage 14 | . 14 14 14 Processor 12 | . 12 14 13 Ballistic Gun 17 | . 27 27 . Impact Weapon 4 | . . . 12 Special Melee Weapon 4 | . . . 12 Naked Turns . | . . . . Heaviest Build 94 | 12 89 89 94 Greatest Support 40 | 40 40 16 40 Greatest Overweight (x) 5 | . 5 5 5 Average Overweight (x) 3 | . 1 5 4 Largest Inventory Capacity 25 | 8 25 25 25 Average Capacity 19 | 8 13 25 25 Most Carried 25 | 7 25 25 25 Average Carried 17 | 7 12 24 22 Final Capacity 25 | 8 25 25 25 Final Carried 25 | 7 25 25 18 Class Distribution -------------------- 100% | Mutant Dominant Class ---------------- Mutant | -10/Materials Mutant | -10/Mines Mutant | -10/Exiles Resources | -11 -10 -10 -10 ----------- Run | Yrd Mat Min Exi Matter Collected 872 | 171 407 56 238 Remotely . | . . . . Salvage Created 711 | . 561 142 8 Parts 60 | . 47 13 . Haulers Intercepted 2 | . 2 . . Recyclers Shooed 2 | . . 2 . Parts Field Recycled . | . . . . Retrieved Matter . | . . . . Parts Self-Destructed . | . . . . Prevented . | . . . . Kills | -11 -10 -10 -10 ------- Run | Yrd Mat Min Exi Combat Hostiles Destroyed 16 | . 10 2 4 Guns 10 | . 10 . . AOE 6 | . . 2 4 Classes Destroyed 9 | . 6 2 1 Worker 1 | . 1 . . Tunneler 1 | . . 1 . Hauler 2 | . 2 . . Recycler 1 | . . 1 . Operator 1 | . 1 . . Watcher 3 | . 3 . . Swarmer 3 | . 3 . . Grunt 9 | . 7 2 . Assembled 4 | . . . 4 Best Kill Streak 7 | . 7 2 4 Combat Bots Only 6 | . 6 2 4 Max Kills in Single Turn 2 | . 1 1 2 Gunslinging . | . . . . Exploded 2 | . . 1 2 Melee . | . . . . Uniques/NPCs Destroyed . | . . . . Combat | -11 -10 -10 -10 -------- Run | Yrd Mat Min Exi Hostile Shots Fired 87 | . 41 1 45 Missed 22 | . 11 . 11 Damage Taken 913 | . 339 17 557 Core 255 | . 80 17 158 Absorbed by Shields . | . . . . Redirected to Shielding 23 | . 23 . . Core Remaining (%) 100 | 100 . . . Volleys Fired 58 | . 44 6 8 Largest 2 | . 2 2 1 Hottest 40 | . 40 40 30 Shots Fired 107 | . 88 11 8 Gun 100 | . 88 9 3 Cannon . | . . . . Launcher 6 | . . 2 4 Special 1 | . . . 1 Kinetic 100 | . 88 9 3 Thermal 1 | . . . 1 Explosive 6 | . . 2 4 Electromagnetic . | . . . . Robot Hit Streak 8 | . 8 5 . Robot Miss Streak 4 | . 4 3 . Penetration Max . | . . . . Secondary Targets 2 | . 2 . . Max Gunslinging Chain 1 | . 1 . . Shots Hit Robots 80 | . 52 7 21 Core Hits 41 | . 27 5 9 Critical Kills 1 | . 1 . . Critical Parts Destroyed . | . . . . Critical Strikes 1 | . 1 . . Destroy 1 | . 1 . . Melee Attacks 28 | . . . 28 Impact . | . . . . Slashing 24 | . . . 24 Piercing . | . . . . Sneak Attacks 4 | . . . 4 Combat Hostiles . | . . . . Follow-up Attacks . | . . . . Damage Inflicted 2006 | . 668 188 1150 Guns 730 | . 653 77 . Cannons . | . . . . Explosions 457 | . . 111 346 Melee 804 | . . . 804 Ramming 15 | . 15 . . Kinetic 730 | . 653 77 . Thermal . | . . . . Explosive 457 | . . 111 346 Electromagnetic . | . . . . Impact . | . . . . Slashing 804 | . . . 804 Piercing . | . . . . Highest Corruption 1 | . 1 1 1 Average Corruption 1 | . 1 1 1 Corruption Purged . | . . . . Corruption Blocked . | . . . . Effects 14 | . 1 4 9 Message Errors 4 | . . 1 3 Matter Fused 3 | . . 1 2 Heat Flow Errors 3 | . 1 1 1 Energy Discharges 3 | . . . 3 Misfires 1 | . . 1 . Overload Shots . | . . . . Overflow Damage 4 | . . . 4 Projectiles . | . . . . Explosions 4 | . . . 4 Melee . | . . . . Knockbacks . | . . . . Impact . | . . . . Kinetic . | . . . . Secondary . | . . . . Self-Inflicted Damage 4 | . 4 . . Shots . | . . . . Rammed 3 | . 3 . . Targets Rammed 3 | . 3 . . Kicked . | . . . . Crushed . | . . . . Highest Temperature 269 | . 88 204 269 Average Temperature 91 | . 30 80 139 Received Heat Transfer 123 | . 96 27 . Siege Activations . | . . . . Robots Corrupted . | . . . . Combat Hostiles . | . . . . Parts Fried . | . . . . Impact Corruptions . | . . . . Robots Melted . | . . . . Combat Hostiles . | . . . . Parts Melted . | . . . . Heat Transferred . | . . . . Parts Sabotaged . | . . . . Parts Stolen . | . . . . Parts Stripped . | . . . . Power Chain Reactions . | . . . . Missiles Intercepted . | . . . . Alert | -11 -10 -10 -10 ------- Run | Yrd Mat Min Exi Peak Influence 185 | . 185 98 . Initial 1 | . . 1 . Average 40 | . 51 7 . Maximum Alert Level . | . . . . Low Security (%) 100 | 100 100 100 . Level 1 . | . . . . Level 2 . | . . . . Level 3 . | . . . . Level 4 . | . . . . Level 5 . | . . . . High Security . | . . . . Max Security . | . . . . Squads Dispatched 1 | . 1 . . Investigation 1 | . 1 . . Extermination . | . . . . Reinforcement . | . . . . Assault . | . . . . Garrison . | . . . . Intercept . | . . . . Searches Triggered . | . . . . Construction Impeded . | . . . . Haulers Reinforced . | . . . . Active Scanning Responses . | . . . . Cargo Convoy Interrupts . | . . . . Stealth | -11 -10 -10 -10 --------- Run | Yrd Mat Min Exi Distress Signals . | . . . . Communications Jammed . | . . . . Distress Signals . | . . . . Times Spotted 25 | . 19 1 5 Peak Tracking Total 9 | . 5 . 9 Tactical Retreats . | . . . . Traps | -11 -10 -10 -10 ------- Run | Yrd Mat Min Exi Traps Triggered 1 | . 1 . . Indirectly . | . . . . Trap Hack Attempts 63 | . 63 . . Triggered . | . . . . Disarmed . | . . . . Reprogrammed 6 | . 6 . . Reused . | . . . . Traps Extracted . | . . . . Installed . | . . . . Triggered . | . . . . Machines | -11 -10 -10 -10 ---------- Run | Yrd Mat Min Exi Machines Disabled 3 | . . 1 2 Max in Single Turn 1 | . . 1 1 Machines Repaired . | . . . . Machines Dismantled . | . . . . Machines Sabotaged . | . . . . Overloaded Fab Kills . | . . . . Hacking | -11 -10 -10 -10 --------- Run | Yrd Mat Min Exi Machines Accessed 13 | . 11 . 2 Terminals 8 | . 8 . . Fabricators . | . . . . Repair Stations 1 | . 1 . . Recycling Units 2 | . 2 . . Scanalyzers . | . . . . Garrison Access . | . . . . Total Hacks 37 | . 35 . 2 Successful 15 | . 13 . 2 Failed 22 | . 22 . . Catastrophic 1 | . 1 . . Database Lockouts . | . . . . Manual 19 | . 18 . 1 Terminals 26 | . 26 . . Fabricators . | . . . . Repair Stations 4 | . 4 . . Recycling Units 5 | . 5 . . Scanalyzers . | . . . . Garrison Access . | . . . . Terminal Hacks 11 | . 9 . 2 Record 1 | . . . 1 Part Schematic 1 | . 1 . . Robot Analysis 6 | . 6 . . Prototype ID Bank 1 | . 1 . . Locate Traps 1 | . 1 . . Derelict Proto ID Bank 1 | . . . 1 Fabricator Hacks . | . . . . Repair Station Hacks 1 | . 1 . . Scan Component 1 | . 1 . . Recycling Unit Hacks 2 | . 2 . . Retrieve Components 2 | . 2 . . Scanalyzer . | . . . . Garrison Access Hacks . | . . . . Unauthorized Hacks 1 | . 1 . . Terminals . | . . . . Fabricators . | . . . . Repair Stations . | . . . . Recycling Units 1 | . 1 . . Tunnel 1 | . 1 . . Scanalyzers . | . . . . Garrison Access . | . . . . Data Cores Recovered 1 | . 1 . . Used . | . . . . Hacking Detections 11 | . 11 . . Full Trace Events 1 | . 1 . . Feedback Events . | . . . . Feedback Blocked . | . . . . Robot Schematics Acquired . | . . . . Robots Built . | . . . . Authchips . | . . . . Time . | . . . . Total Robot Build Rating . | . . . . Part Schematics Acquired 1 | . 1 . . Parts Built . | . . . . Authchips . | . . . . Time . | . . . . Total Part Build Rating . | . . . . Parts Repaired . | . . . . Time . | . . . . Parts Recycled . | . . . . Recycled Matter . | . . . . Retrieved Matter . | . . . . Retrieved Components 10 | . 10 . . Parts Scanalyzed . | . . . . Part Schematics Acquired . | . . . . Parts Damaged . | . . . . Bothacking | -11 -10 -10 -10 ------------ Run | Yrd Mat Min Exi Used RIF Installer . | . . . . Robots Hacked 4 | . . . 4 Non-combat 3 | . . . 3 Combat 1 | . . . 1 Robot Hacks Applied 4 | . . . 4 parse_system 4 | . . . 4 Relay Couplers Released . | . . . . Fabnet Peak Effective % . | . . . . Robots Rewired . | . . . . Allies Hacked . | . . . . Hacks Repelled . | . . . . Allies | -11 -10 -10 -10 -------- Run | Yrd Mat Min Exi Total Allies 2 | . . 1 1 Largest Group 1 | . . 1 1 Highest-Rated Group 36 | . . 31 36 Highest-Rated Ally 36 | . . 31 36 Total Orders 5 | . . . 5 STAY 4 | . . . 4 FOLLOW 1 | . . . 1 Ally Attacks 1 | . . . 1 Total Damage 24 | . . . 24 Kills . | . . . . Allies Corrupted . | . . . . Allies Melted . | . . . . Intel | -11 -10 -10 -10 ------- Run | Yrd Mat Min Exi Robot Analysis Total 6 | . 6 . . Derelict Logs Recovered 2 | . . 2 . Drone Launches . | . . . . Drone Recoveries . | . . . . Exploration | -11 -10 -10 -10 ------------- Run | Yrd Mat Min Exi Turns Passed 3943 | 5 1828 621 1489 Spaces Moved 2069 | 2 971 339 757 Core . | . . . . Treads 610 | 2 602 . 6 Legs . | . . . . Wheels 1459 | . 369 339 751 Hover . | . . . . Flight . | . . . . Fastest Speed 115 | 160 115 175 135 Average Speed 168 | 160 160 175 175 Slowest Speed 320 | 160 175 175 320 Overloaded Moves . | . . . . Propulsion Burnouts . | . . . . Robots Hopped . | . . . . Cave-ins Triggered . | . . . . Exploration Rate (%) 60 | 2 97 73 68 Regions Visited 3 Branch Regions 2 Pre-discovered Areas 2 | . 1 . 1 Known Exits Taken . | . . . . Unknown Exits Taken 3 | 1 1 1 . Scrap Searched 1 | . . 1 . Spaces Dug . | . . . . Terrain Destroyed 21 | . . 9 12 Melee . | . . . . Projectile . | . . . . AOE 21 | . . 9 12 Terrain Rammed . | . . . . Walls Destroyed . | . . . . Machines Disabled . | . . . . Actions | -11 -10 -10 -10 --------- Run | Yrd Mat Min Exi Total 2403 | 3 1152 356 892 Wait 82 | . 22 3 57 Move 2066 | 1 970 338 757 Hop . | . . . . Pick Up 43 | . 27 2 14 Fast Attach 2 | . 2 . . Attach 3 | . . . 3 Detach . | . . . . Swap 29 | 2 9 5 13 Drop 31 | . 12 2 17 Fire 58 | . 44 6 8 Melee 23 | . . . 23 Ram 1 | . 1 . . Kick . | . . . . Crush 2 | . 2 . . Escape Stasis . | . . . . Rewire . | . . . . Trap 63 | . 63 . . Miscellaneous . | . . . . Route ------- -11/Scrapyard -10/Materials (discovered 4 exits: [*Mat x3] / [*Min]) -10/Mines (discovered 3 exits: [*Mat x2] / *Exi) -10/Exiles History --------- Turn | Location | Event 4 | -11/Scrapyard | Discovered new exit (range 1) 6 | -11/Scrapyard | Entered Materials 310 | -10/Materials | Build established: Mutant 494 | -10/Materials | Discovered new exit (range 12) 698 | -10/Materials | Discovered new exit (range 10) 950 | -10/Materials | Discovered new exit (range 8) 1187 | -10/Materials | Discovered new exit (range 6) 1834 | -10/Materials | Entered Mines 1837 | -10/Mines | Received a Mining Laser from a helpful Derelict 1970 | -10/Mines | A weapon hastily lodged in a ceiling crevice suddenly fell to the ground 2172 | -10/Mines | Learned Materials stockpile data 2219 | -10/Mines | Discovered new exit (range 7) 2279 | -10/Mines | Learned 2 Materials zone layouts 2321 | -10/Mines | Discovered new exit (range 12) 2365 | -10/Mines | Deemed a non-threat by the Exiles lab entrance 2444 | -10/Mines | Discovered new exit (range 5) 2455 | -10/Mines | Entered Exiles 2499 | -10/Exiles | Met 8R-AWN 2530 | -10/Exiles | Met EX-HEX 2602 | -10/Exiles | Met EX-DEC 2663 | -10/Exiles | Learned location of Zion (-7) 2694 | -10/Exiles | Met EX-BIN 3226 | -10/Exiles | Botcube activated 3248 | -10/Exiles | Botcube completed mutation into treaded form, armed with 2 guns. 3541 | -10/Exiles | Aligned with FarCom system 3543 | -10/Exiles | Given EX-Vault access code 3583 | -10/Exiles | Opened EX-Vault 3597 | -10/Exiles | Found Gui. Plasma Cannon 3603 | -10/Exiles | Found Longsword +1 3641 | -10/Exiles | Warned to stay clear of 0b10 Research branches 3802 | -10/Exiles | Attacked by the Exiles 3906 | -10/Exiles | Core integrity fell below 50% 3936 | -10/Exiles | Core integrity fell below 20% 3944 | -10/Exiles | Destroyed by 8R-AWN with 8R-AWN's Boregun Last Messages --------------- 03922_ HV Slug penetrates Wall. 03922_ Penetrated by HV Slug. 03923_ Destroyed 8R-AWN's Armor/TH. 03924_ HV Slug penetrates Wall. 03924_ HV Slug penetrates Machine. 03924_ HV Slug penetrates Wall. 03926_ BQ9SZB|LLV# GUXEX5 6MC 03929_ Critical hit (Destroy). 03929_ Lgt. Treads destroyed. 03929_ HV Slug penetrates Wall. 03931_ Penetrated by HV Slug. 03940_ Critical hit (Destroy). 03940_ Mak. Axe destroyed. 03942_ Penetrated by HV Slug. 03944_ Critical hit (Destroy). 03944_ Lgt. Treads destroyed. 03944_ Penetrated by HV Slug. Map ----- +----------------------------------------------------+ | ?????????????????????????????????????????????????? | | ?????????????????????????????????????????????????? | | ?????????????????????????????????????????????????? | | ?????????????????????????????????????????????????? | | ?????????????????????????????????????????????????? | | ?????????????????????????????????????????????????? | | ?????????????????????????????????????????????????? | | ?????????????????????????????????????????????????? | | ?????????????????????????????????????????????????? | | ?????????????????????????????????????????????????? | | ?????????????????????????????????????????????????? | | ?????????????????????????????????????????????????? | | ????????????????????????????????????????????????## | | ????????????????????????????????????????????????"" | | ????????????????????????????????????????????????"" | | ???????????????????????????????????????????????#"" | | ???????????????????????????????????????????????#" | | ???????????????????????????????????????????????#" | | ???????????????????????????????????????????????#"" | | ????????????????????????###????????????????????##" | | ????????????????????????# #????##????????????????? | | ????????????????????????# #???# #????????????????? | | ????????????????????????# #??# #?????????????????? | | ??????? ??????????????###;### #??????????????????? | | ??????? ######???????#!g! ";#???????????????????? | | ?????? #""#??????# @ #????????????????????? | | ??????? ??????# =[ #????????????????????? | | ??????" #????## [% #????????????####????? | | ??????? ##### ! ;#??????????? """???? | | ???????# ##" # #??????????" """#??? | | ????????# #"" #### #????????"" ???? | | ???????????# ???# #???????"" ???? | | ?????????????## ???# #??????"" "???? | | ??????????????### ????# #????? ""???? | | ????????########" #???# ??????" "????? | | ????????# """"" #???? ?????# #????? | | ????????#! "## ###### ??### ###?## | | ????????#! "## """#####X# #"###" | | ????????# #### """"" | | ????????# !""""""###??## * " "" | | ????????##########?????#### " " | | ??????????????????????????### | | ????????????????????????????### | | ??????????????????????????????## | | ???????????????????????????????## | | ????????????????????????????????##" | | ?????????????????????????????????#""" | | ????????????????????????????????##" | | ????????????????????????????????#"" " | | ???????????????????????????????##""" """ | +----------------------------------------------------+ Best States ------------- Heat Dissipation 25 Energy Generation 10 Energy Capacity 250 Matter Stores 300 Matter Capacity 450 Sight Range 16 Terrain Scan Density 10 Weapon Shielding 33 Evasion (%) 40 Targeting Accuracy 5 Recoil Reduction 2 Item Schematics ----------------- Huge Storage Unit | -10/Materials | Hacked Robot Schematics ------------------ None Fabricated ------------ Nothing Alien Tech Used ----------------- None Achievements -------------- None Challenges ------------ None Game ------ Seed MediumMatterPit Manual? 0 Play Time 00:19:22 Cumulative 1429.2 hours Start 2024.01.07 @ 11:53:08 End 2024.01.07 @ 12:10:58 Sessions 1 Manual Loads 0 Difficulty Rogue Special Mode None Game No. 1009 Rogue 1005 Adventurer 4 Explorer 0 Win Type - Total 172 Types 128/11/11/7/2/1/2/6/4 Lore% 95 Gallery% 98 Achievement% 98 Wizard Run 0 Options --------- ASCII 0 Keyboard 1 Movement Vi Keybinds 0 Fullscreen 0 Font 20/X11 Map View 76x50 Zoom Use 0% Tactical HUD 1 Map Filters NONE Filters NONE Steam 1 RUN: ecae5900-f25d-4b8b-ac12-4fceb4b04f93